[Event "November 21 Early 2023"]
[Site "https://www.chess.com"]
[Date "2023.11.21"]
[Round "8"]
[White "Bychkov, Vladimir"]
[Black "Andriasian, Zaven"]
[Result "0-1"]
[Board "100"]
[TimeControl "180+1"]
[WhiteFideId "24151513"]
[BlackFideId "13302000"]
[WhiteElo "2224"]
[BlackElo "2624"]
[WhiteTeam "RUS"]
[BlackTeam "ARM"]
[WhiteClock "0:02:04"]
[BlackClock "0:02:52"]

1. e4 {[%clk 0:02:58]}  c5 {[%clk 0:03:00]} 2. Nf3 {[%clk 0:02:55]}  d6 {[%clk 0:03:00]} 3. d4 {[%clk 0:02:54]}  cxd4 {[%clk 0:03:01]} 4. Qxd4 {[%clk 0:02:54]}  a6 {[%clk 0:03:00]} 5. c4 {[%clk 0:02:53]}  Nc6 {[%clk 0:02:59]} 6. Qe3 {[%clk 0:02:54]}  g6 {[%clk 0:03:00]} 7. h3 {[%clk 0:02:54]}  Bg7 {[%clk 0:03:00]} 8. Nc3 {[%clk 0:02:54]}  Nf6 {[%clk 0:03:01]} 9. Be2 {[%clk 0:02:53]}  O-O {[%clk 0:03:02]} 10. O-O {[%clk 0:02:54]}  Be6 {[%clk 0:03:01]} 11. Rd1 {[%clk 0:02:54]}  Nd7 {[%clk 0:03:00]} 12. b3 {[%clk 0:02:52]}  Rc8 {[%clk 0:03:00]} 13. Bb2 {[%clk 0:02:52]}  Re8 {[%clk 0:02:58]} 14. Rac1 {[%clk 0:02:52]}  Qb6 {[%clk 0:02:58]} 15. Qxb6 {[%clk 0:02:47]}  Nxb6 {[%clk 0:02:59]} 16. Ba1 {[%clk 0:02:45]}  Nd7 {[%clk 0:02:58]} 17. Ne1 {[%clk 0:02:42]}  Nc5 {[%clk 0:02:58]} 18. f3 {[%clk 0:02:41]}  Nd4 {[%clk 0:02:57]} 19. Bf1 {[%clk 0:02:40]}  h5 {[%clk 0:02:56]} 20. Nd5 {[%clk 0:02:39]}  Bxd5 {[%clk 0:02:55]} 21. cxd5 {[%clk 0:02:39]}  e5 {[%clk 0:02:55]} 22. dxe6 {[%clk 0:02:38]}  Ncxe6 {[%clk 0:02:55]} 23. Bc4 {[%clk 0:02:35]}  b5 {[%clk 0:02:53]} 24. Bxe6 {[%clk 0:02:34]}  Rxc1 {[%clk 0:02:53]} 25. Rxc1 {[%clk 0:02:26]}  Ne2+ {[%clk 0:02:53]} 26. Kf1 {[%clk 0:02:26]}  Nxc1 {[%clk 0:02:54]} 27. Bxg7 {[%clk 0:02:23]}  Kxg7 {[%clk 0:02:53]} 28. Bd5 {[%clk 0:02:18]}  Nxa2 {[%clk 0:02:52]} 29. Nd3 {[%clk 0:02:18]}  Nc3 {[%clk 0:02:52]} 30. Bb7 {[%clk 0:02:18]}  a5 {[%clk 0:02:52]} 31. Ke1 {[%clk 0:02:18]}  Rb8 {[%clk 0:02:50]} 32. Bc6 {[%clk 0:02:18]}  Rc8 {[%clk 0:02:50]} 33. Bb7 {[%clk 0:02:09]}  Rc7 {[%clk 0:02:50]} 34. Ba6 {[%clk 0:02:09]}  a4 {[%clk 0:02:50]} 35. bxa4 {[%clk 0:02:08]}  bxa4 {[%clk 0:02:51]} 36. Kd2 {[%clk 0:02:08]}  a3 {[%clk 0:02:52]} 37. Nb4 {[%clk 0:02:04]}  a2 {[%clk 0:02:52]} 0-1

[Event "November 21 Early 2023"]
[Site "https://www.chess.com"]
[Date "2023.11.21"]
[Round "8"]
[White "Omariev, Maksim"]
[Black "Ljukin, Sergei"]
[Result "0-1"]
[Board "102"]
[TimeControl "180+1"]
[WhiteFideId "4193423"]
[BlackFideId "14102200"]
[WhiteElo "2543"]
[BlackElo "2312"]
[WhiteTeam "RUS"]
[BlackTeam "UKR"]
[WhiteClock "0:00:12"]
[BlackClock "0:00:50"]

1. g4 {[%clk 0:03:00]}  d5 {[%clk 0:02:56]} 2. Bg2 {[%clk 0:03:00]}  c6 {[%clk 0:02:57]} 3. h3 {[%clk 0:02:53]}  h5 {[%clk 0:02:56]} 4. g5 {[%clk 0:02:53]}  e5 {[%clk 0:02:54]} 5. d4 {[%clk 0:02:54]}  e4 {[%clk 0:02:52]} 6. c4 {[%clk 0:02:54]}  Be6 {[%clk 0:02:39]} 7. Nc3 {[%clk 0:02:54]}  f5 {[%clk 0:02:37]} 8. cxd5 {[%clk 0:02:34]}  cxd5 {[%clk 0:02:37]} 9. Bf4 {[%clk 0:02:35]}  Ne7 {[%clk 0:02:34]} 10. e3 {[%clk 0:02:34]}  Ng6 {[%clk 0:02:34]} 11. Nge2 {[%clk 0:02:34]}  Bf7 {[%clk 0:02:27]} 12. Qb3 {[%clk 0:02:22]}  Qb6 {[%clk 0:02:17]} 13. Qxb6 {[%clk 0:01:35]}  axb6 {[%clk 0:02:15]} 14. Bc7 {[%clk 0:01:20]}  Nd7 {[%clk 0:02:07]} 15. h4 {[%clk 0:01:17]}  Rc8 {[%clk 0:02:03]} 16. Nb5 {[%clk 0:01:07]}  Bb4+ {[%clk 0:01:57]} 17. Nec3 {[%clk 0:01:07]}  O-O {[%clk 0:01:50]} 18. Rc1 {[%clk 0:01:06]}  f4 {[%clk 0:01:40]} 19. Bh3 {[%clk 0:01:04]}  Be8 {[%clk 0:01:31]} 20. Be6+ {[%clk 0:00:59]}  Kh8 {[%clk 0:01:30]} 21. Bxd5 {[%clk 0:00:58]}  fxe3 {[%clk 0:01:28]} 22. fxe3 {[%clk 0:00:59]}  Nf6 {[%clk 0:01:15]} 23. gxf6 {[%clk 0:00:12]}  Bxb5 {[%clk 0:01:15]} 24. Bxb6 {[%clk 0:00:04]}  Rxf6 {[%clk 0:01:10]} 25. Bc5 {[%clk 0:00:04]}  Bxc5 {[%clk 0:01:08]} 26. dxc5 {[%clk 0:00:05]}  Rxc5 {[%clk 0:01:08]} 27. Bxe4 {[%clk 0:00:05]}  Ne5 {[%clk 0:01:04]} 28. Kd2 {[%clk 0:00:02]}  Rf2+ {[%clk 0:01:01]} 29. Ke1 {[%clk 0:00:02]}  Rxb2 {[%clk 0:00:58]} 30. Rg1 {[%clk 0:00:02]}  Bd3 {[%clk 0:00:57]} 31. Rd1 {[%clk 0:00:01]}  Rxc3 {[%clk 0:00:55]} 32. Rg5 {[%clk 0:00:01]}  Re2+ {[%clk 0:00:52]} 33. Kf1 {[%clk 0:00:02]}  Rd2+ {[%clk 0:00:50]} 34. Bxd3 {[%clk 0:00:03]}  Rxd1+ {[%clk 0:00:50]} 35. Ke2 {[%clk 0:00:03]}  Rcxd3 {[%clk 0:00:49]} 36. Rxh5+ {[%clk 0:00:04]}  Kg8 {[%clk 0:00:48]} 37. Rxe5 {[%clk 0:00:05]}  R3d2+ {[%clk 0:00:48]} 38. Kf3 {[%clk 0:00:05]}  Rxa2 {[%clk 0:00:49]} 39. h5 {[%clk 0:00:05]}  Rf1+ {[%clk 0:00:46]} 40. Ke4 {[%clk 0:00:05]}  Ra4+ {[%clk 0:00:46]} 41. Kd3 {[%clk 0:00:06]}  Rd1+ {[%clk 0:00:45]} 42. Kc2 {[%clk 0:00:06]}  Rd7 {[%clk 0:00:46]} 43. Kb3 {[%clk 0:00:06]}  Rh4 {[%clk 0:00:45]} 44. Rg5 {[%clk 0:00:06]}  Rd3+ {[%clk 0:00:45]} 45. Kc2 {[%clk 0:00:05]}  Rxe3 {[%clk 0:00:45]} 46. Kd2 {[%clk 0:00:05]}  Ra3 {[%clk 0:00:45]} 47. Rb5 {[%clk 0:00:05]}  Rh2+ {[%clk 0:00:45]} 48. Kc1 {[%clk 0:00:04]}  Ra1+ {[%clk 0:00:45]} 49. Rb1 {[%clk 0:00:05]}  Rxb1+ {[%clk 0:00:46]} 50. Kxb1 {[%clk 0:00:05]}  Rxh5 {[%clk 0:00:46]} 51. Kb2 {[%clk 0:00:06]}  Rf5 {[%clk 0:00:46]} 52. Kb3 {[%clk 0:00:07]}  g5 {[%clk 0:00:46]} 53. Kc3 {[%clk 0:00:08]}  g4 {[%clk 0:00:47]} 54. Kd3 {[%clk 0:00:09]}  Kg7 {[%clk 0:00:47]} 55. Ke4 {[%clk 0:00:09]}  Kg6 {[%clk 0:00:48]} 56. Ke3 {[%clk 0:00:10]}  g3 {[%clk 0:00:48]} 57. Ke4 {[%clk 0:00:11]}  g2 {[%clk 0:00:49]} 58. Ke3 {[%clk 0:00:12]}  g1=Q+ {[%clk 0:00:49]} 59. Ke2 {[%clk 0:00:12]}  Qg4+ {[%clk 0:00:50]} 0-1

[Event "November 21 Early 2023"]
[Site "https://www.chess.com"]
[Date "2023.11.21"]
[Round "8"]
[White "Mejia, Cherry Ann"]
[Black "Skliarov, Viktor"]
[Result "0-1"]
[Board "107"]
[TimeControl "180+1"]
[WhiteFideId "5206880"]
[BlackFideId "14106736"]
[WhiteElo "2009"]
[BlackElo "2304"]
[WhiteTeam "PHI"]
[BlackTeam "UKR"]
[WhiteClock "0:00:01"]
[BlackClock "0:00:08"]

1. e4 {[%clk 0:03:00]}  c5 {[%clk 0:03:00]} 2. Nc3 {[%clk 0:03:00]}  Nc6 {[%clk 0:03:00]} 3. g3 {[%clk 0:03:00]}  g6 {[%clk 0:02:58]} 4. d3 {[%clk 0:02:59]}  Bg7 {[%clk 0:02:58]} 5. Be3 {[%clk 0:02:59]}  d6 {[%clk 0:02:57]} 6. Qd2 {[%clk 0:03:00]}  Rb8 {[%clk 0:02:57]} 7. Bg2 {[%clk 0:03:00]}  b5 {[%clk 0:02:58]} 8. Nge2 {[%clk 0:02:54]}  Nd4 {[%clk 0:02:55]} 9. h3 {[%clk 0:02:48]}  e6 {[%clk 0:02:50]} 10. O-O {[%clk 0:02:45]}  Ne7 {[%clk 0:02:50]} 11. f4 {[%clk 0:02:42]}  O-O {[%clk 0:02:49]} 12. g4 {[%clk 0:02:40]}  f5 {[%clk 0:02:48]} 13. Ng3 {[%clk 0:02:40]}  b4 {[%clk 0:02:46]} 14. Nd1 {[%clk 0:02:40]}  Kh8 {[%clk 0:02:31]} 15. c3 {[%clk 0:02:39]}  bxc3 {[%clk 0:02:29]} 16. bxc3 {[%clk 0:02:40]}  Ndc6 {[%clk 0:02:26]} 17. Nb2 {[%clk 0:02:29]}  Ba6 {[%clk 0:02:22]} 18. Rf2 {[%clk 0:02:27]}  Qa5 {[%clk 0:02:20]} 19. Rc1 {[%clk 0:02:15]}  Qxa2 {[%clk 0:02:07]} 20. d4 {[%clk 0:02:11]}  c4 {[%clk 0:01:23]} 21. Rc2 {[%clk 0:02:07]}  Qb3 {[%clk 0:01:14]} 22. d5 {[%clk 0:02:04]}  exd5 {[%clk 0:01:14]} 23. exd5 {[%clk 0:02:04]}  Nb4 {[%clk 0:00:45]} 24. cxb4 {[%clk 0:01:53]}  c3 {[%clk 0:00:45]} 25. Rxc3 {[%clk 0:01:47]}  Qxc3 {[%clk 0:00:41]} 26. Bxa7 {[%clk 0:01:39]}  Qxd2 {[%clk 0:00:39]} 27. Rxd2 {[%clk 0:01:38]}  Rxb4 {[%clk 0:00:39]} 28. Nd3 {[%clk 0:01:28]}  Bd4+ {[%clk 0:00:34]} 29. Kh2 {[%clk 0:01:26]}  Bxd3 {[%clk 0:00:34]} 30. Bxd4+ {[%clk 0:01:22]}  Rxd4 {[%clk 0:00:33]} 31. Ne2 {[%clk 0:01:22]}  Bxe2 {[%clk 0:00:30]} 32. Rxd4 {[%clk 0:01:22]}  Kg7 {[%clk 0:00:22]} 33. Rb4 {[%clk 0:01:16]}  Rc8 {[%clk 0:00:20]} 34. Rb7 {[%clk 0:01:12]}  Kf6 {[%clk 0:00:20]} 35. Rd7 {[%clk 0:01:05]}  fxg4 {[%clk 0:00:15]} 36. Rxd6+ {[%clk 0:01:05]}  Kf7 {[%clk 0:00:15]} 37. hxg4 {[%clk 0:01:04]}  Bxg4 {[%clk 0:00:15]} 38. Ra6 {[%clk 0:01:01]}  Rc2 {[%clk 0:00:12]} 39. d6 {[%clk 0:00:47]}  Nf5 {[%clk 0:00:11]} 40. Ra7+ {[%clk 0:00:36]}  Kf6 {[%clk 0:00:11]} 41. d7 {[%clk 0:00:24]}  Rd2 {[%clk 0:00:11]} 42. Kg1 {[%clk 0:00:23]}  Nh4 {[%clk 0:00:07]} 43. Bc6 {[%clk 0:00:22]}  Nf3+ {[%clk 0:00:07]} 44. Bxf3 {[%clk 0:00:21]}  Bxf3 {[%clk 0:00:08]} 45. d8=Q+ {[%clk 0:00:13]}  Rxd8 {[%clk 0:00:08]} 46. Kf2 {[%clk 0:00:14]}  Be4 {[%clk 0:00:06]} 47. Rxh7 {[%clk 0:00:14]}  Bf5 {[%clk 0:00:06]} 48. Ra7 {[%clk 0:00:13]}  Rd2+ {[%clk 0:00:05]} 49. Ke3 {[%clk 0:00:13]}  Rd3+ {[%clk 0:00:06]} 50. Ke2 {[%clk 0:00:14]}  Rb3 {[%clk 0:00:05]} 51. Ra6+ {[%clk 0:00:14]}  Kg7 {[%clk 0:00:06]} 52. Kf2 {[%clk 0:00:13]}  Kh6 {[%clk 0:00:06]} 53. Ra1 {[%clk 0:00:08]}  Kh5 {[%clk 0:00:06]} 54. Rg1 {[%clk 0:00:08]}  Kh4 {[%clk 0:00:06]} 55. Ke2 {[%clk 0:00:07]}  Bg4+ {[%clk 0:00:05]} 56. Kf2 {[%clk 0:00:07]}  Rf3+ {[%clk 0:00:05]} 57. Kg2 {[%clk 0:00:07]}  Rg3+ {[%clk 0:00:06]} 58. Kf2 {[%clk 0:00:06]}  Rxg1 {[%clk 0:00:07]} 59. Kxg1 {[%clk 0:00:07]}  Kg3 {[%clk 0:00:07]} 60. f5 {[%clk 0:00:06]}  Bxf5 {[%clk 0:00:07]} 61. Kh1 {[%clk 0:00:06]}  Kf2 {[%clk 0:00:07]} 62. Kh2 {[%clk 0:00:07]}  g5 {[%clk 0:00:08]} 63. Kh1 {[%clk 0:00:01]}  g4 {[%clk 0:00:08]} 0-1

[Event "November 21 Early 2023"]
[Site "https://www.chess.com"]
[Date "2023.11.21"]
[Round "8"]
[White "Streltsov, Alexey"]
[Black "Begunov, Konstantin"]
[Result "1-0"]
[Board "110"]
[TimeControl "180+1"]
[WhiteFideId "24104434"]
[BlackFideId "4118510"]
[WhiteElo "2311"]
[BlackElo "1989"]
[WhiteTeam "ISR"]
[BlackTeam "RUS"]
[WhiteClock "0:00:18"]
[BlackClock "0:00:16"]

1. e4 {[%clk 0:02:56]}  c5 {[%clk 0:02:59]} 2. Nf3 {[%clk 0:02:55]}  d6 {[%clk 0:03:00]} 3. d4 {[%clk 0:02:53]}  cxd4 {[%clk 0:03:01]} 4. Nxd4 {[%clk 0:02:54]}  Nf6 {[%clk 0:03:02]} 5. Bd3 {[%clk 0:02:51]}  e6 {[%clk 0:02:58]} 6. c4 {[%clk 0:02:51]}  Be7 {[%clk 0:02:58]} 7. Nc3 {[%clk 0:02:51]}  O-O {[%clk 0:02:58]} 8. Be3 {[%clk 0:02:52]}  a6 {[%clk 0:02:58]} 9. O-O {[%clk 0:02:51]}  Nc6 {[%clk 0:02:55]} 10. f4 {[%clk 0:02:40]}  Bd7 {[%clk 0:02:54]} 11. Qf3 {[%clk 0:02:22]}  Rb8 {[%clk 0:02:43]} 12. g4 {[%clk 0:02:09]}  Nxd4 {[%clk 0:02:35]} 13. Bxd4 {[%clk 0:02:09]}  Bc6 {[%clk 0:02:36]} 14. g5 {[%clk 0:02:08]}  Nd7 {[%clk 0:02:36]} 15. Qh3 {[%clk 0:01:26]}  b5 {[%clk 0:01:59]} 16. Nd5 {[%clk 0:01:08]}  bxc4 {[%clk 0:01:42]} 17. Nxe7+ {[%clk 0:00:45]}  Qxe7 {[%clk 0:01:43]} 18. Bc2 {[%clk 0:00:42]}  e5 {[%clk 0:01:29]} 19. Bc3 {[%clk 0:00:36]}  exf4 {[%clk 0:01:18]} 20. Bxg7 {[%clk 0:00:25]}  Kxg7 {[%clk 0:00:19]} 21. Qh6+ {[%clk 0:00:22]}  Kh8 {[%clk 0:00:20]} 22. e5 {[%clk 0:00:23]}  f5 {[%clk 0:00:20]} 23. exf6 {[%clk 0:00:20]}  Qe3+ {[%clk 0:00:16]} 24. Rf2 {[%clk 0:00:21]}  Be4 {[%clk 0:00:16]} 25. Qg7# {[%clk 0:00:18]} 1-0

[Event "November 21 Early 2023"]
[Site "https://www.chess.com"]
[Date "2023.11.21"]
[Round "8"]
[White "Gutkin, Ilya"]
[Black "Rosner, Jonas"]
[Result "1-0"]
[Board "111"]
[TimeControl "180+1"]
[WhiteFideId "16203470"]
[BlackFideId "24608513"]
[WhiteElo "2248"]
[BlackElo "2394"]
[WhiteTeam "GER"]
[BlackTeam "GER"]
[WhiteClock "0:00:07"]
[BlackClock "0:00:00"]

1. e4 {[%clk 0:03:00]}  e5 {[%clk 0:02:56]} 2. Nf3 {[%clk 0:02:56]}  Nc6 {[%clk 0:02:54]} 3. Bb5 {[%clk 0:02:54]}  Nf6 {[%clk 0:02:53]} 4. O-O {[%clk 0:02:52]}  Nxe4 {[%clk 0:02:51]} 5. d4 {[%clk 0:02:49]}  Nd6 {[%clk 0:02:49]} 6. Bxc6 {[%clk 0:02:50]}  dxc6 {[%clk 0:02:49]} 7. dxe5 {[%clk 0:02:50]}  Nf5 {[%clk 0:02:50]} 8. Qxd8+ {[%clk 0:02:50]}  Kxd8 {[%clk 0:02:51]} 9. Nc3 {[%clk 0:02:49]}  h6 {[%clk 0:02:47]} 10. h3 {[%clk 0:02:49]}  Be7 {[%clk 0:02:45]} 11. Bf4 {[%clk 0:02:31]}  Be6 {[%clk 0:02:41]} 12. g4 {[%clk 0:02:22]}  Nh4 {[%clk 0:02:40]} 13. Nxh4 {[%clk 0:02:22]}  Bxh4 {[%clk 0:02:41]} 14. Kg2 {[%clk 0:02:21]}  Ke7 {[%clk 0:02:35]} 15. Bg3 {[%clk 0:02:17]}  Bxg3 {[%clk 0:02:29]} 16. Kxg3 {[%clk 0:02:16]}  g5 {[%clk 0:02:27]} 17. Rad1 {[%clk 0:02:05]}  Rad8 {[%clk 0:02:25]} 18. f4 {[%clk 0:02:04]}  Rxd1 {[%clk 0:02:20]} 19. Rxd1 {[%clk 0:02:03]}  gxf4+ {[%clk 0:02:20]} 20. Kxf4 {[%clk 0:02:02]}  h5 {[%clk 0:02:20]} 21. Kg3 {[%clk 0:01:44]}  hxg4 {[%clk 0:02:12]} 22. hxg4 {[%clk 0:01:45]}  c5 {[%clk 0:02:08]} 23. Ne4 {[%clk 0:01:38]}  b6 {[%clk 0:01:56]} 24. a3 {[%clk 0:01:31]}  a5 {[%clk 0:01:54]} 25. c3 {[%clk 0:00:48]}  Rh7 {[%clk 0:01:37]} 26. Ng5 {[%clk 0:00:26]}  Rh8 {[%clk 0:01:28]} 27. Rf1 {[%clk 0:00:20]}  Bd5 {[%clk 0:01:17]} 28. Rd1 {[%clk 0:00:18]}  Bb3 {[%clk 0:01:12]} 29. Rf1 {[%clk 0:00:15]}  Rd8 {[%clk 0:01:10]} 30. Rf2 {[%clk 0:00:12]}  Rd3+ {[%clk 0:01:08]} 31. Kf4 {[%clk 0:00:12]}  Bd5 {[%clk 0:01:02]} 32. Nh7 {[%clk 0:00:10]}  Rd1 {[%clk 0:00:49]} 33. Nf6 {[%clk 0:00:10]}  Be6 {[%clk 0:00:49]} 34. Ne4 {[%clk 0:00:10]}  a4 {[%clk 0:00:41]} 35. Rd2 {[%clk 0:00:10]}  Rf1+ {[%clk 0:00:39]} 36. Rf2 {[%clk 0:00:10]}  Rg1 {[%clk 0:00:38]} 37. Ng3 {[%clk 0:00:10]}  Kd7 {[%clk 0:00:32]} 38. Rd2+ {[%clk 0:00:09]}  Kc6 {[%clk 0:00:32]} 39. Nf5 {[%clk 0:00:09]}  Kb5 {[%clk 0:00:22]} 40. Ne3 {[%clk 0:00:08]}  Rb1 {[%clk 0:00:13]} 41. Re2 {[%clk 0:00:08]}  Kc6 {[%clk 0:00:11]} 42. Kg5 {[%clk 0:00:08]}  Rg1 {[%clk 0:00:09]} 43. Kf6 {[%clk 0:00:08]}  Kb5 {[%clk 0:00:08]} 44. g5 {[%clk 0:00:07]}  Bb3 {[%clk 0:00:07]} 45. Rf2 {[%clk 0:00:06]}  Kc6 {[%clk 0:00:06]} 46. Nf5 {[%clk 0:00:06]}  Kd5 {[%clk 0:00:04]} 47. Nh6 {[%clk 0:00:07]}  Ke4 {[%clk 0:00:03]} 48. Nxf7 {[%clk 0:00:07]}  Bxf7 {[%clk 0:00:02]} 49. Kxf7 {[%clk 0:00:07]}  Rxg5 {[%clk 0:00:03]} 50. e6 {[%clk 0:00:07]}  Ke3 {[%clk 0:00:02]} 51. Rf6 {[%clk 0:00:06]}  Rg2 {[%clk 0:00:00]} 52. e7 {[%clk 0:00:07]} 1-0

[Event "November 21 Early 2023"]
[Site "https://www.chess.com"]
[Date "2023.11.21"]
[Round "8"]
[White "Kim, Sergey"]
[Black "Osinovsky, Stepan"]
[Result "1-0"]
[Board "112"]
[TimeControl "180+1"]
[WhiteFideId "13700570"]
[BlackFideId "4157354"]
[WhiteElo "2566"]
[BlackElo "2222"]
[WhiteTeam "KAZ"]
[BlackTeam "RUS"]
[WhiteClock "0:01:16"]
[BlackClock "0:00:00"]

1. d4 {[%clk 0:03:00]}  Nf6 {[%clk 0:03:00]} 2. c4 {[%clk 0:03:00]}  g6 {[%clk 0:03:00]} 3. Nc3 {[%clk 0:03:00]}  Bg7 {[%clk 0:03:01]} 4. e4 {[%clk 0:03:01]}  O-O {[%clk 0:03:02]} 5. Nge2 {[%clk 0:03:00]}  d6 {[%clk 0:03:02]} 6. Ng3 {[%clk 0:03:00]}  e5 {[%clk 0:03:01]} 7. d5 {[%clk 0:03:00]}  h5 {[%clk 0:03:01]} 8. Be2 {[%clk 0:02:58]}  h4 {[%clk 0:02:53]} 9. Nf1 {[%clk 0:02:58]}  Nfd7 {[%clk 0:02:52]} 10. g4 {[%clk 0:02:54]}  c6 {[%clk 0:02:47]} 11. Ne3 {[%clk 0:02:44]}  cxd5 {[%clk 0:02:46]} 12. cxd5 {[%clk 0:02:43]}  a5 {[%clk 0:02:30]} 13. O-O {[%clk 0:02:41]}  Na6 {[%clk 0:02:26]} 14. Kh1 {[%clk 0:02:40]}  Bh6 {[%clk 0:02:23]} 15. Rg1 {[%clk 0:02:37]}  Bg5 {[%clk 0:02:20]} 16. Nc4 {[%clk 0:02:33]}  Ndc5 {[%clk 0:01:57]} 17. f3 {[%clk 0:02:11]}  Bf4 {[%clk 0:01:08]} 18. Bxf4 {[%clk 0:02:00]}  exf4 {[%clk 0:01:09]} 19. Nb5 {[%clk 0:02:00]}  Bd7 {[%clk 0:00:57]} 20. Ncxd6 {[%clk 0:01:59]}  Nc7 {[%clk 0:00:47]} 21. Qd4 {[%clk 0:01:43]}  Bxb5 {[%clk 0:00:22]} 22. Nxb5 {[%clk 0:01:40]}  N7e6 {[%clk 0:00:20]} 23. dxe6 {[%clk 0:01:37]}  Nxe6 {[%clk 0:00:15]} 24. Qxd8 {[%clk 0:01:35]}  Rfxd8 {[%clk 0:00:16]} 25. Rgd1 {[%clk 0:01:34]}  Rxd1+ {[%clk 0:00:15]} 26. Rxd1 {[%clk 0:01:33]}  Rc8 {[%clk 0:00:16]} 27. Nc3 {[%clk 0:01:29]}  a4 {[%clk 0:00:15]} 28. a3 {[%clk 0:01:28]}  Kg7 {[%clk 0:00:10]} 29. Kg1 {[%clk 0:01:23]}  Ng5 {[%clk 0:00:10]} 30. Kf2 {[%clk 0:01:21]}  Rc5 {[%clk 0:00:00]} 31. Rd5 {[%clk 0:01:16]} 1-0

[Event "November 21 Early 2023"]
[Site "https://www.chess.com"]
[Date "2023.11.21"]
[Round "8"]
[White "Derjabin, Ilja"]
[Black "Bashirli, Saadat"]
[Result "0-1"]
[Board "114"]
[TimeControl "180+1"]
[WhiteFideId "14104768"]
[BlackFideId "13429990"]
[WhiteElo "2309"]
[BlackElo "1537"]
[WhiteTeam "UKR"]
[BlackTeam "AZE"]
[WhiteClock "0:02:07"]
[BlackClock "0:01:46"]

1. d4 {[%clk 0:02:56]}  d5 {[%clk 0:02:54]} 2. c4 {[%clk 0:02:56]}  c6 {[%clk 0:02:54]} 3. Nc3 {[%clk 0:02:56]}  Nf6 {[%clk 0:02:53]} 4. Nf3 {[%clk 0:02:56]}  Bf5 {[%clk 0:02:53]} 5. g3 {[%clk 0:02:56]}  e6 {[%clk 0:02:51]} 6. Bg2 {[%clk 0:02:56]}  Bd6 {[%clk 0:02:49]} 7. Bf4 {[%clk 0:02:54]}  O-O {[%clk 0:02:44]} 8. O-O {[%clk 0:02:53]}  Nh5 {[%clk 0:02:40]} 9. Bxd6 {[%clk 0:02:51]}  Qxd6 {[%clk 0:02:38]} 10. Ne5 {[%clk 0:02:51]}  f6 {[%clk 0:02:29]} 11. g4 {[%clk 0:02:50]}  Nf4 {[%clk 0:02:19]} 12. gxf5 {[%clk 0:02:48]}  fxe5 {[%clk 0:02:18]} 13. dxe5 {[%clk 0:02:45]}  Qxe5 {[%clk 0:02:18]} 14. e3 {[%clk 0:02:44]}  Nxg2 {[%clk 0:02:15]} 15. Kxg2 {[%clk 0:02:44]}  Qxf5 {[%clk 0:02:15]} 16. f4 {[%clk 0:02:35]}  Nd7 {[%clk 0:02:11]} 17. Qf3 {[%clk 0:02:25]}  Rf6 {[%clk 0:02:09]} 18. Rad1 {[%clk 0:02:23]}  Rg6+ {[%clk 0:02:07]} 19. Kh1 {[%clk 0:02:23]}  Nf6 {[%clk 0:02:06]} 20. cxd5 {[%clk 0:02:19]}  exd5 {[%clk 0:02:04]} 21. Ne2 {[%clk 0:02:15]}  Ng4 {[%clk 0:01:52]} 22. Ng3 {[%clk 0:02:07]}  Qc2 {[%clk 0:01:46]} 0-1

[Event "November 21 Early 2023"]
[Site "https://www.chess.com"]
[Date "2023.11.21"]
[Round "8"]
[White "topce"]
[Black "RodokininEV"]
[Result "1-0"]
[Board "117"]
[TimeControl "180+1"]
[WhiteElo "2430"]
[BlackElo "2526"]
[WhiteClock "0:01:03"]
[BlackClock "0:00:03"]

1. c4 {[%clk 0:03:00]}  Nf6 {[%clk 0:02:59]} 2. Nc3 {[%clk 0:03:00]}  g6 {[%clk 0:03:00]} 3. e4 {[%clk 0:02:59]}  d6 {[%clk 0:03:00]} 4. d4 {[%clk 0:03:00]}  Bg7 {[%clk 0:03:00]} 5. f4 {[%clk 0:03:00]}  O-O {[%clk 0:03:01]} 6. Nf3 {[%clk 0:03:01]}  Bg4 {[%clk 0:03:00]} 7. Bd3 {[%clk 0:02:58]}  c5 {[%clk 0:03:00]} 8. d5 {[%clk 0:02:58]}  e6 {[%clk 0:03:01]} 9. dxe6 {[%clk 0:02:59]}  Bxe6 {[%clk 0:02:52]} 10. f5 {[%clk 0:02:57]}  Bc8 {[%clk 0:02:48]} 11. O-O {[%clk 0:02:53]}  Nc6 {[%clk 0:02:45]} 12. fxg6 {[%clk 0:02:53]}  hxg6 {[%clk 0:02:44]} 13. Bg5 {[%clk 0:02:54]}  Qa5 {[%clk 0:02:40]} 14. Qd2 {[%clk 0:02:47]}  Bg4 {[%clk 0:02:31]} 15. Bh6 {[%clk 0:02:38]}  Bxf3 {[%clk 0:02:25]} 16. Bxg7 {[%clk 0:02:29]}  Kxg7 {[%clk 0:02:23]} 17. Rxf3 {[%clk 0:02:25]}  Qd8 {[%clk 0:02:03]} 18. Raf1 {[%clk 0:02:20]}  Ng4 {[%clk 0:02:02]} 19. Nd5 {[%clk 0:02:15]}  Nce5 {[%clk 0:01:58]} 20. Rh3 {[%clk 0:02:00]}  Rh8 {[%clk 0:01:54]} 21. Rxh8 {[%clk 0:01:47]}  Qxh8 {[%clk 0:01:55]} 22. h3 {[%clk 0:01:47]}  Nxd3 {[%clk 0:01:41]} 23. Qxd3 {[%clk 0:01:38]}  Ne5 {[%clk 0:01:40]} 24. Qg3 {[%clk 0:01:32]}  Qh5 {[%clk 0:01:32]} 25. Qf4 {[%clk 0:01:24]}  Qe2 {[%clk 0:01:03]} 26. Qf6+ {[%clk 0:01:22]}  Kg8 {[%clk 0:00:53]} 27. Rf4 {[%clk 0:01:16]}  Qd1+ {[%clk 0:00:31]} 28. Kh2 {[%clk 0:01:14]}  Qd4 {[%clk 0:00:11]} 29. Ne7+ {[%clk 0:01:05]}  Kf8 {[%clk 0:00:03]} 30. Nxg6+ {[%clk 0:01:03]} 1-0